bitfinex-derivatives/quotes_SOLF0:USTF0_20250514
["timestamp","ask_amount","ask_price","bid_price","bid_amount"]
[1747204441034,56.06,183.0,182.99,5.465]
[1747204441435,56.0,183.04,182.98,55.78]
[1747204441729,61.8804777,183.05,182.98,55.78]
[1747204442032,61.4441,183.03,182.98,55.78]
[1747204442234,61.8804777,183.05,182.98,55.78]
[1747204442535,55.98,183.04,182.98,55.78]
[1747204443032,5.4646,183.01,182.98,61.2453]
[1747204443233,55.98,183.04,182.98,55.78]
[1747204443530,57.6453,183.05,182.98,55.78]
[1747204443728,61.1692,183.1,182.98,55.78]
[1747204443930,0.98054436,183.09,182.99,7.9319777]
[1747204444234,55.94,183.1,183.08,5.4621]
[1747204444435,55.96,183.12,183.08,5.4621]
[1747204444623,61.4212,183.12,183.06,55.78]
[1747204445234,55.96,183.12,183.07,5.4624]
[1747204446034,61.4212,183.12,183.07,5.4624]
[1747204446527,55.92,183.12,183.07,5.4624]
[1747204447234,5.4615,183.11,183.08,5.4623]
[1747204447435,5.4615,183.11,183.06,55.78]
[1747204447832,5.4615,183.11,183.07,5.4626]
[1747204448333,5.4619,183.1,183.06,55.78]
[1747204449032,5.4621,183.09,183.06,55.78]
[1747204449237,55.92,183.12,183.06,55.78]
[1747204452536,5.4622,183.09,183.06,55.78]
[1747204452732,60.1551777,183.12,183.06,55.78]
[1747204452937,60.1551777,183.12,183.01,55.76]
[1747204452938,4.2351777,183.09,183.01,55.76]
[1747204453133,5.4635,183.05,183.01,61.2241]
[1747204453436,55.78,183.08,183.01,61.2241]
[1747204454641,5.4635,183.05,183.01,61.2241]
[1747204455136,55.78,183.08,183.02,5.464]
[1747204455340,5.4635,183.05,183.01,55.76]
[1747204455539,55.78,183.08,183.01,61.2243]
[1747204455933,55.78,183.08,183.01,55.76]
[1747204456140,55.78,183.08,183.02,5.4639]
[1747204456340,5.4631,183.06,183.02,5.4639]
[1747204457641,5.4624,183.08,183.01,55.76]
[1747204457842,364.0,183.13,183.01,111.54]
[1747204458039,55.8,183.12,183.02,1.7263]
[1747204458852,5.4613,183.12,183.08,5.4621]
[1747204459055,55.8,183.13,183.08,5.4621]
[1747204459552,5.4617,183.11,183.08,5.4621]
[1747204460052,55.8,183.13,183.07,55.78]
[1747204460053,5.4619,183.1,183.07,61.2425]
[1747204461154,5.4623,183.08,183.07,55.78]
[1747204463954,5.4627,183.07,183.04,5.4635]
[1747204466254,5.4627,183.07,183.05,5.4632]
[1747204466459,55.7,183.1,183.03,55.78]
[1747204466858,5.4615,183.11,183.08,5.4621]
[1747204467061,5.4615,183.11,183.03,55.78]
[1747204467450,5.4615,183.11,183.08,5.462]
[1747204467653,61.0412,183.12,183.03,55.78]
[1747204467960,61.0412,183.12,183.08,5.4621]
[1747204468358,55.58,183.12,183.03,55.78]
[1747204468560,55.58,183.12,183.07,5.4624]
[1747204469360,5.4619,183.1,183.07,5.4624]
[1747204470263,5.4615,183.11,183.08,5.4621]
[1747204471065,61.0413,183.12,183.03,55.78]
[1747204471366,55.58,183.12,183.03,55.78]
[1747204471663,5.4616,183.11,183.03,55.78]
[1747204472255,55.78,183.14,183.03,55.78]
[1747204472460,55.58,183.13,183.03,55.78]
[1747204472668,61.0408,183.13,183.1,5.4615]
[1747204473166,5.4611,183.12,183.09,5.4619]
[1747204473467,55.58,183.13,183.07,55.78]
[1747204473967,5.4613,183.12,183.09,5.462]
[1747204474466,61.0409,183.13,183.1,5.4616]
[1747204475363,5.4606,183.14,183.11,5.4614]
[1747204475566,61.0406,183.14,183.11,5.4614]
[1747204475965,5.4606,183.14,183.11,5.4614]
[1747204476566,9.6953777,183.15,183.12,5.4611]
[1747204476764,60.0151777,183.18,183.07,55.78]
[1747204477065,55.58,183.15,183.07,55.78]
[1747204477262,6.43998869,183.17,183.13,5.4606]
[1747204477463,61.0399,183.17,183.13,5.4606]
[1747204477669,55.58,183.17,183.13,5.4606]
[1747204478064,5.4601,183.16,183.13,5.4606]
[1747204478265,55.58,183.17,183.11,61.2214]
[1747204478766,5.4604,183.15,183.11,61.2214]
[1747204479168,5.4604,183.15,183.12,5.4611]
[1747204479363,5.4606,183.14,183.11,55.76]
[1747204479668,55.58,183.17,183.11,61.2213]
[1747204479961,5.4607,183.14,183.11,55.76]
[1747204480765,5.4607,183.14,183.11,61.2214]
[1747204481568,5.4607,183.14,183.12,5.4611]
[1747204482167,364.0,183.19,183.11,55.76]
[1747204482364,55.56,183.18,183.11,55.76]
[1747204482768,5.46,183.16,183.12,5.4609]
[1747204483162,5.46,183.16,183.11,55.76]
[1747204483465,5.4608,183.14,183.11,61.2213]
[1747204484668,5.4603,183.15,183.12,5.461]
[1747204486066,5.46,183.16,183.13,5.4606]
[1747204486271,59.7951777,183.18,183.11,55.76]
[1747204486469,5.4597,183.17,183.13,5.4606]
[1747204487070,5.46,183.16,183.13,5.4606]
[1747204491474,5.4603,183.15,183.13,5.4606]
[1747204491668,59.7951777,183.18,183.13,5.4606]
[1747204492676,5.46,183.16,183.13,5.4606]
[1747204493574,5.4602,183.15,183.13,5.4606]
[1747204493777,59.7951777,183.18,183.13,5.4606]
[1747204493976,5.46,183.16,183.13,5.4606]
[1747204496979,5.4603,183.15,183.12,5.461]
[1747204497477,5.4607,183.14,183.11,61.2213]
[1747204497778,5.4607,183.14,183.11,55.76]
[1747204497975,59.7951777,183.18,183.11,55.76]
[1747204498677,5.4603,183.15,183.12,5.4609]
[1747204499383,5.4603,183.15,183.12,5.4611]
[1747204501081,5.4603,183.15,183.13,5.4608]
[1747204502580,5.46,183.16,183.13,5.4608]
[1747204502783,364.0,183.19,183.11,55.76]
[1747204503081,419.56,183.19,183.11,55.76]
[1747204503278,419.56,183.19,183.16,5.4597]
[1747204503475,364.0,183.19,183.11,55.76]
[1747204503781,364.0,183.19,183.18,5.4593]
[1747204505880,60.9982,183.22,183.19,5.459]
[1747204506185,4.2351777,183.23,183.15,55.56]
[1747204506378,55.54,183.23,183.21,5.4582]
[1747204506580,55.54,183.23,183.15,55.56]
[1747204506776,55.54,183.25,183.15,55.56]
[1747204506981,0.97970008,183.24,183.15,55.56]
[1747204507381,0.97970008,183.26,183.25,5.4572]
[1747204507578,423.7751777,183.34,183.24,55.54]
[1747204507784,56.51947825,183.33,183.25,55.54]
[1747204508084,0.97947825,183.32,183.28,5.4561]
[1747204508384,55.54,183.32,183.28,5.4561]
[1747204508574,0.97947825,183.31,183.28,5.4561]
[1747204508774,56.51947825,183.31,183.28,5.4561]
[1747204509084,55.54,183.31,183.28,5.4561]
[1747204509284,55.54,183.31,183.29,5.4559]
[1747204509783,55.54,183.33,183.29,5.4559]
[1747204509983,0.97930919,183.32,183.29,5.4559]
[1747204510174,60.995,183.33,183.29,5.4559]
[1747204510378,60.995,183.33,183.27,5.4564]
[1747204511079,55.54,183.33,183.27,5.4564]
[1747204511386,55.54,183.33,183.26,60.9969]
[1747204511683,5.4557,183.31,183.26,60.9969]
[1747204511886,0.97929301,183.32,183.26,60.9969]
[1747204512082,4.2351777,183.31,183.26,55.54]
[1747204512382,4.2351777,183.28,183.21,55.52]
[1747204512583,5.4577,183.24,183.21,55.52]
[1747204512786,56.49939998,183.27,183.21,55.52]
[1747204512982,5.4585,183.21,183.16,471.94]
[1747204513188,4.2351777,183.25,183.16,471.94]
[1747204513189,4.2351777,183.25,183.18,5.4593]
[1747204513388,55.52,183.24,183.17,55.52]
[1747204513782,55.52,183.24,183.18,5.4593]
[1747204514289,4.2351777,183.28,183.22,5.4581]
[1747204514487,55.52,183.27,183.22,5.4581]
[1747204514688,56.499643,183.27,183.17,55.52]
[1747204514888,5.4576,183.24,183.17,55.52]
[1747204515588,55.52,183.23,183.03,62.0]
[1747204515792,4.2351777,183.13,183.04,59.0702]
[1747204516083,55.52,183.12,183.04,55.52]
[1747204516284,59.1056,183.12,183.04,55.52]
[1747204517089,364.0,183.21,183.04,55.52]
[1747204517388,3.5856,183.2,183.07,4.2351777]
[1747204517582,55.52,183.2,183.08,112.8826]
[1747204518289,55.52,183.2,183.16,5.4598]
[1747204519594,4.2351777,183.19,183.09,55.52]
[1747204519793,7.8762777,183.19,183.09,55.52]
[1747204519986,55.52,183.18,183.09,55.52]
[1747204520188,55.52,183.18,183.17,5.4596]
[1747204521288,371.8762777,183.25,183.13,55.52]
[1747204521492,55.52,183.24,183.14,55.52]
[1747204522287,55.52,183.25,183.14,115.2751777]
[1747204522490,59.7551777,183.28,183.15,3.4767]
[1747204522491,55.52,183.28,183.15,3.4767]
[1747204522890,55.52,183.28,183.27,5.4567]
[1747204523094,55.52,183.28,183.22,55.52]
[1747204524398,55.52,183.28,183.26,5.4569]
[1747204524994,55.52,183.28,183.27,5.4567]
[1747204525196,55.52,183.28,183.22,55.52]
[1747204525796,7.2988,183.3,183.26,5.4567]
[1747204525998,55.52,183.28,183.26,5.4567]
[1747204526197,55.52,183.28,183.22,55.52]
[1747204526496,55.52,183.28,183.27,5.4567]
[1747204527499,55.52,183.28,183.25,5.457]
[1747204528596,55.52,183.28,183.26,5.4569]
[1747204528799,55.52,183.28,183.22,55.52]
[1747204529596,111.04,183.31,183.22,55.52]
[1747204529802,55.52,183.31,183.3,5.4558]
[1747204530002,55.52,183.32,183.22,111.04]
[1747204530201,55.52,183.31,183.29,5.4558]
[1747204530414,55.52,183.31,183.22,111.04]
[1747204530904,55.52,183.31,183.29,5.456]
[1747204531106,55.52,183.31,183.22,111.04]
[1747204531308,9.6899777,183.34,183.22,111.04]
[1747204531607,56.47930685,183.33,183.22,111.04]
[1747204531905,0.97930685,183.32,183.22,111.04]
[1747204532511,55.5,183.31,183.22,111.04]
[1747204533002,55.5,183.31,183.28,5.4563]
[1747204533406,55.5,183.31,183.23,1.7389]
[1747204533609,60.9557,183.31,183.27,5.4566]
[1747204533812,55.5,183.32,183.25,55.5]
[1747204534108,60.9554,183.32,183.27,5.4564]
[1747204534308,55.5,183.32,183.27,5.4564]
[1747204535104,55.5,183.32,183.26,5.4569]
[1747204535307,55.5,183.32,183.25,55.5]
[1747204535710,5.456,183.3,183.26,5.4569]
[1747204536309,5.4561,183.29,183.26,5.4569]
[1747204536610,59.7351777,183.28,183.18,55.5]
[1747204536804,56.47956594,183.27,183.18,55.5]
[1747204537006,5.4575,183.25,183.2,5.4585]
[1747204537308,55.5,183.27,183.2,5.4585]
[1747204537512,5.4573,183.25,183.21,5.4583]
[1747204538005,55.5,183.27,183.21,5.4583]
[1747204538210,4.2351777,183.22,182.97,31.5631777]
[1747204538507,5.4596,183.17,183.12,55.5]
[1747204538710,4.2351777,183.19,183.12,55.5]
[1747204539308,61.1212,183.21,183.12,55.5]
[1747204539806,61.1212,183.21,183.14,5.4605]
[1747204540110,61.1212,183.21,183.12,55.5]
[1747204540512,5.4592,183.19,183.15,5.46]
[1747204540714,61.1212,183.21,183.12,55.5]
[1747204541012,5.4591,183.19,183.16,5.4599]
[1747204541510,61.1212,183.21,183.12,55.5]
[1747204541908,0.9798936,183.2,183.12,55.5]
[1747204542412,5.4596,183.18,183.14,5.4605]
[1747204542610,55.56,183.17,183.14,5.4605]
[1747204542913,55.56,183.17,183.12,55.5]
[1747204543104,55.56,183.2,183.12,55.5]
[1747204544415,55.56,183.2,183.18,5.4591]
[1747204544609,5.2866,183.29,183.12,55.5]
[1747204544806,112.03970012,183.25,183.12,55.5]
[1747204545012,0.97970012,183.24,183.13,5.3289]
[1747204545608,0.97970012,183.24,183.22,5.4579]
[1747204545814,0.97970012,183.24,183.19,55.5]
[1747204546314,0.97970012,183.24,183.22,5.4581]
[1747204546711,56.51970012,183.25,183.22,5.4581]
[1747204547015,0.97970012,183.24,183.22,5.4581]
[1747204548117,0.97970012,183.24,183.19,55.5]
[1747204548410,6.43750012,183.24,183.19,55.5]
[1747204548614,0.97970012,183.24,183.19,55.5]
[1747204548915,55.54,183.25,183.19,55.5]
[1747204549615,55.54,183.25,183.22,5.458]
[1747204552010,55.54,183.25,183.23,5.4578]
[1747204552318,55.5,183.28,183.19,55.5]
[1747204552514,55.52,183.27,183.19,55.5]
[1747204552816,55.52,183.27,183.26,5.4567]
[1747204553017,55.52,183.28,183.26,5.4567]
[1747204556219,478.64497451,183.35,183.23,55.5]
[1747204556409,55.5,183.36,183.23,55.5]
[1747204556613,55.5,183.34,183.23,55.5]
[1747204556815,1.8108,183.33,183.23,55.5]
[1747204557113,5.4559,183.3,183.26,5.4567]
[1747204557310,55.5,183.29,183.26,5.4567]
[1747204558015,55.5,183.29,183.27,5.4565]
[1747204558318,55.5,183.29,183.23,55.5]
[1747204558717,55.5,183.29,183.28,5.4564]
[1747204560221,55.5,183.29,183.23,55.5]
[1747204561022,55.5,183.28,183.19,55.5]
[1747204561221,4.22542264,183.26,183.19,55.5]
[1747204561421,55.5,183.25,183.22,5.4581]
[1747204562017,55.62,183.29,183.23,55.5]
[1747204562622,55.62,183.29,183.28,5.4564]
[1747204563018,1.8318,183.31,183.23,55.5]
[1747204563225,55.64,183.31,183.3,5.4558]
[1747204563819,4.22542264,183.35,183.27,55.5]
[1747204564124,55.64,183.34,183.27,55.5]
[1747204564313,1.7895,183.36,183.27,55.5]
[1747204564517,55.64,183.35,183.27,55.5]
[1747204564915,55.64,183.35,183.33,5.4547]
[1747204565124,1.7895,183.36,183.33,5.4547]
[1747204565326,57.4095,183.36,183.33,5.4547]
[1747204565828,62.8635,183.36,183.32,5.4551]
[1747204566028,57.4095,183.36,183.27,55.5]
[1747204566327,0.97908849,183.35,183.27,55.5]
[1747204566524,5.4547,183.34,183.27,55.5]
[1747204567026,57.4095,183.36,183.27,55.5]
[1747204567325,0.9494707,183.46,183.27,55.5]
[1747204567527,61.1922,183.42,183.28,6.00772264]
[1747204567724,0.97881127,183.41,183.28,9.40412264]
[1747204567926,0.97881127,183.41,183.29,55.78]
[1747204568228,4.22542264,183.4,183.29,55.78]
[1747204568628,0.97881127,183.39,183.29,55.78]
[1747204568931,6.43201127,183.39,183.35,5.4542]
[1747204569228,5.4537,183.37,183.33,5.4546]
[1747204569831,61.2935,183.38,183.34,5.4546]
[1747204570030,4.22542264,183.4,183.31,55.48]
[1747204570230,0.97900374,183.37,183.31,55.48]
[1747204570428,0.97900374,183.39,183.37,5.4535]
[1747204570732,55.84,183.4,183.37,5.4535]
[1747204571333,55.84,183.4,183.31,55.48]
[1747204571528,60.06542264,183.4,183.31,55.48]
[1747204571829,0.97884632,183.39,183.34,5.4545]
[1747204572229,5.4537,183.37,183.34,5.4545]
[1747204572624,55.8,183.36,183.34,5.4545]
[1747204572823,55.8,183.36,183.33,5.4548]
[1747204573022,55.8,183.36,183.31,55.48]
[1747204574334,55.8,183.36,183.34,5.4543]
[1747204574829,55.8,183.36,183.34,5.4546]
[1747204575233,61.254,183.36,183.31,55.48]
[1747204575639,55.8,183.36,183.31,55.48]
[1747204575935,0.97911013,183.35,183.31,55.48]
[1747204576234,0.97911013,183.35,183.27,527.1]
[1747204576640,0.97911013,183.35,183.32,5.455]
[1747204576934,55.74,183.36,183.27,527.1]
[1747204577132,3.7064,183.38,183.27,527.1]
[1747204577330,1.8708,183.38,183.28,1.8127]
[1747204577532,55.76,183.38,183.28,59.3728]
[1747204578331,59.68542264,183.4,183.28,59.3728]
[1747204578531,55.76,183.39,183.28,59.3728]
[1747204578931,61.2132,183.39,183.35,5.4541]
[1747204579535,55.76,183.39,183.36,5.4538]
[1747204579734,55.76,183.39,183.32,55.48]
[1747204580836,55.72,183.39,183.32,55.48]
[1747204581540,55.72,183.39,183.37,5.4535]
[1747204582340,55.72,183.39,183.38,5.4534]
[1747204582734,55.66,183.39,183.37,5.4536]
[1747204582939,55.66,183.39,183.32,55.48]
[1747204583136,368.22542264,183.43,183.32,55.48]
[1747204583340,56.63884009,183.42,183.39,5.4529]
[1747204583540,0.97884009,183.41,183.39,5.4529]
[1747204583842,0.97884009,183.41,183.32,55.48]
[1747204583843,55.64,183.4,183.32,55.48]
[1747204584141,59.86542264,183.4,183.32,55.48]
[1747204584541,6.43194009,183.39,183.35,5.454]
[1747204584741,59.86542264,183.4,183.32,55.48]
[1747204585040,65.31832264,183.4,183.36,5.4537]
[1747204585540,65.31832264,183.4,183.37,5.4537]
[1747204585945,5.4531,183.39,183.32,55.48]
[1747204586141,5.4531,183.39,183.36,5.4539]
[1747204587042,65.31832264,183.4,183.37,5.4537]
[1747204587239,59.86542264,183.4,183.32,55.48]
[1747204587542,5.4531,183.39,183.32,55.48]
[1747204588038,5.4531,183.39,183.35,5.454]
[1747204588443,5.4531,183.39,183.32,55.48]
[1747204588643,65.31832264,183.4,183.37,5.4536]
[1747204588943,59.86542264,183.4,183.32,55.48]
[1747204589643,5.4531,183.39,183.36,5.4538]
[1747204589843,55.54,183.39,183.32,55.48]
[1747204590241,55.54,183.39,183.38,5.4534]
[1747204590538,5.4524,183.42,183.32,55.48]
[1747204590742,55.54,183.4,183.38,5.4533]
[1747204591439,55.54,183.4,183.37,5.4536]
[1747204592148,55.66,183.39,183.28,55.66]
[1747204592342,4.22542264,183.37,183.28,55.66]
[1747204592542,61.2142,183.36,183.32,5.4551]
[1747204592736,55.76,183.36,183.28,55.66]
[1747204593147,5.4545,183.35,183.31,5.4554]
[1747204593347,5.4545,183.35,183.28,55.66]
[1747204593846,5.4545,183.35,183.31,5.4552]
[1747204594947,5.4545,183.35,183.32,5.4552]
[1747204596051,55.76,183.36,183.28,55.66]
[1747204596243,1.778,183.38,183.28,55.66]
[1747204596244,55.7,183.38,183.28,55.66]
[1747204596440,55.72,183.39,183.37,5.4537]
[1747204596844,5.4527,183.41,183.37,5.4537]
[1747204597040,55.7,183.4,183.33,55.66]
[1747204597949,55.7,183.4,183.37,5.4534]
[1747204598252,61.1528,183.4,183.37,5.4534]
[1747204598452,55.7,183.4,183.33,55.66]
[1747204598650,55.7,183.4,183.36,5.4539]
[1747204598846,55.7,183.4,183.33,55.66]
[1747204599046,61.1528,183.4,183.33,55.66]
[1747204599250,55.7,183.4,183.37,5.4535]
[1747204600852,61.153,183.4,183.36,5.4539]
[1747204601051,61.153,183.4,183.33,55.66]
[1747204601654,55.66,183.39,183.29,57.396]
[1747204601855,60.25591929,183.39,183.29,57.396]
[1747204602155,5.4539,183.37,183.33,5.4547]
[1747204602357,55.6,183.36,183.29,55.66]
[1747204602656,55.6,183.36,183.34,5.4545]
[1747204602855,55.6,183.36,183.29,55.66]
[1747204603555,55.6,183.36,183.35,5.4543]
[1747204603754,55.6,183.36,183.29,55.66]
[1747204603958,55.6,183.36,183.34,5.4545]
[1747204604350,364.0,183.43,183.29,55.66]
[1747204604555,56.61885311,183.42,183.29,55.66]
[1747204604753,0.97885311,183.41,183.29,55.66]
[1747204605359,0.97885311,183.41,183.39,5.4529]
[1747204606957,0.97885311,183.41,183.38,5.4533]
[1747204607257,0.97885311,183.41,183.34,55.66]
[1747204607557,0.97885311,183.41,183.36,5.4539]
[1747204607858,0.97885311,183.41,183.34,55.66]
[1747204608058,5.453,183.4,183.34,55.66]
[1747204608256,4.22542264,183.4,183.34,55.66]
[1747204608757,55.66,183.4,183.34,55.66]
[1747204609448,55.66,183.4,183.39,5.4531]
[1747204612459,4.22542264,183.43,183.42,5.4522]
[1747204612650,151.5486776,183.47,183.38,55.56]
[1747204612857,55.62,183.44,183.38,55.56]
[1747204613057,55.62,183.44,183.42,5.452]
[1747204613656,55.62,183.44,183.41,5.4524]
[1747204614258,5.4515,183.45,183.38,55.56]
[1747204614259,55.58,183.45,183.43,5.4518]
[1747204614460,55.58,183.45,183.38,55.56]
[1747204615256,61.0314,183.45,183.41,5.4522]
[1747204615454,59.80542264,183.45,183.38,55.56]
[1747204615857,5.4519,183.43,183.39,5.4529]
[1747204616054,0.9786356,183.44,183.39,5.4529]
[1747204616258,0.9786356,183.44,183.38,55.56]
[1747204616560,5.4524,183.42,183.39,5.4531]
[1747204616760,55.62,183.41,183.39,5.4531]
[1747204616960,55.62,183.41,183.38,55.56]
[1747204617860,5.4528,183.4,183.38,55.56]
[1747204618160,5.4528,183.4,183.36,5.4539]
[1747204618461,5.4528,183.4,183.37,5.4537]
[1747204619461,5.4532,183.39,183.36,5.4539]
[1747204619663,5.4532,183.39,183.34,55.56]
[1747204619864,55.62,183.41,183.34,55.56]
[1747204620063,55.62,183.41,183.36,5.4539]
[1747204620363,55.62,183.41,183.34,55.56]
[1747204620564,5.4539,183.37,183.34,61.0144]
[1747204620863,4.22542264,183.39,183.34,61.0144]
[1747204620864,55.56,183.36,183.34,55.56]
[1747204621162,4.22542264,183.39,183.34,55.56]
[1747204621362,55.58,183.38,183.34,55.56]
[1747204622767,61.0336,183.38,183.34,5.4544]
[1747204622959,61.0336,183.38,183.3,55.56]
[1747204624564,55.58,183.38,183.3,55.56]
[1747204626163,5.4539,183.37,183.3,55.56]
[1747204627063,4.22542264,183.36,183.32,5.4551]
[1747204627269,3.4265,183.37,183.26,55.56]
[1747204627566,4.22542264,183.33,183.26,55.56]
[1747204627966,0.97915179,183.36,183.26,55.56]
[1747204627967,55.52,183.32,183.26,55.56]
[1747204628266,55.52,183.32,183.31,5.4555]
[1747204628855,59.78542264,183.38,183.26,55.56]
[1747204629166,55.54,183.37,183.26,55.56]
[1747204629364,55.54,183.37,183.35,5.4543]
[1747204629970,55.54,183.37,183.36,5.454]
[1747204630163,4.22542264,183.43,183.3,55.56]
[1747204630367,55.6,183.42,183.31,59.2078]
[1747204630669,55.6,183.42,183.4,5.4525]
[1747204631169,55.6,183.42,183.41,5.4525]
[1747204631370,56.57874303,183.42,183.41,5.4525]
[1747204631669,56.57874303,183.42,183.35,55.56]
[1747204632171,55.6,183.42,183.35,55.56]
[1747204632970,55.6,183.42,183.4,5.4526]
[1747204633171,55.54,183.41,183.35,55.56]
[1747204633472,55.54,183.41,183.4,5.4528]
[1747204634271,55.56,183.44,183.35,55.56]
[1747204634471,55.5,183.43,183.35,55.56]
[1747204634971,3.5367,183.45,183.42,5.4521]
[1747204635172,3.5367,183.45,183.35,55.56]
[1747204635173,55.52,183.44,183.35,55.56]
[1747204635369,56.49861523,183.44,183.35,55.56]
[1747204635573,0.97861523,183.44,183.35,55.56]
[1747204635770,55.5,183.43,183.35,55.56]
[1747204635970,55.5,183.43,183.42,5.4522]
[1747204636677,55.5,183.43,183.35,55.56]
[1747204637167,60.9519,183.43,183.35,55.56]
[1747204637367,55.5,183.43,183.35,55.56]
[1747204637577,1.7206,183.46,183.35,55.56]
[1747204637778,55.48,183.45,183.35,55.56]
[1747204638077,57.2806,183.46,183.35,55.56]
[1747204638283,55.54,183.45,183.35,55.56]
[1747204639280,5.4516,183.44,183.35,55.56]
[1747204639473,55.54,183.45,183.35,55.56]
[1747204639874,6.43041514,183.44,183.35,55.56]
[1747204640179,5.4518,183.44,183.35,55.56]
[1747204640588,5.4518,183.44,183.4,5.4528]
[1747204642082,5.4518,183.44,183.41,5.4525]
[1747204642576,58.9937,183.46,183.35,55.56]
[1747204642880,55.56,183.46,183.36,55.46]
[1747204643080,56.45859667,183.45,183.36,55.46]
[1747204643280,55.56,183.46,183.44,5.4516]
[1747204643680,55.48,183.45,183.44,5.4516]
[1747204644275,152.77395496,183.47,183.44,5.4516]
[1747204644482,55.48,183.46,183.45,5.4512]
[1747204645379,147.32325496,183.47,183.45,5.4512]
[1747204645680,55.48,183.46,183.45,5.4512]
[1747204647182,55.48,183.46,183.42,5.452]
[1747204648388,60.931,183.46,183.42,5.452]
[1747204649288,55.48,183.46,183.43,5.4519]
[1747204649990,64.33694413,183.47,183.4,55.46]
[1747204650491,64.33694413,183.47,183.44,5.4514]
[1747204650692,64.33694413,183.47,183.4,55.46]
[1747204650988,64.33694413,183.47,183.45,5.4512]
[1747204651190,8.87694413,183.47,183.4,55.46]
[1747204651390,55.46,183.46,183.4,55.46]
[1747204651788,55.46,183.46,183.45,5.4513]
[1747204652890,8.87694413,183.47,183.46,5.451]
[1747204656894,8.87694413,183.47,183.44,55.46]
[1747204657191,55.46,183.46,183.44,55.46]
[1747204657395,55.46,183.46,183.44,60.9113]
[1747204658290,55.46,183.46,183.45,5.4513]
[1747204659495,0.94882351,183.6,183.45,589.18]
[1747204659701,58.9962,183.69,183.53,4.21108496]
[1747204659903,58.9962,183.69,183.56,4.21108496]
[1747204660195,552.58210848,183.77,183.6,4.20274635]
[1747204660403,57.34,183.75,183.63,4.20274635]
[1747204660899,250.77871203,183.74,183.63,4.20274635]
[1747204661098,250.77871203,183.74,183.69,5.444]
[1747204661401,250.77871203,183.74,183.57,1.6811]
[1747204661402,142.89762669,183.72,183.7,55.44]
[1747204661598,142.89762669,183.72,183.71,60.8636]
[1747204662196,1.7963,183.82,183.71,55.42]
[1747204662393,57.6,183.8,183.71,55.42]
[1747204663499,0.94729965,183.89,183.73,6.71440602]
[1747204663700,0.94729965,183.89,183.71,55.42]
[1747204663701,1.8387,183.94,183.8,6.71191981]
[1747204663998,1.8387,183.94,183.81,587.22]
[1747204664596,1.8387,183.94,183.84,6.71191981]
[1747204664796,58.1,183.97,183.84,6.71191981]
[1747204664996,63.5361,183.97,183.9,5.4379]
[1747204665195,63.5361,183.97,183.9,63.4779]
[1747204665494,8.87694413,183.98,183.9,63.4779]
[1747204665699,58.08,183.97,183.9,63.4779]